bitfinex/quotes_ETHUSD_20251201
["timestamp","ask_amount","ask_price","bid_price","bid_amount"]
[1764627846075,1.0865273,2803.8,2803.5,3.56696985]
[1764627846450,0.4611,2803.8,2803.5,3.56696985]
[1764627847386,0.232,2803.6,2803.3,3.72598107]
[1764627847552,0.232,2803.6,2803.4,0.568]
[1764627848387,0.232,2803.6,2803.4,4.13506594]
[1764627848595,0.4569,2803.5,2803.4,0.568]
[1764627849063,0.4569,2803.5,2803.4,4.13509709]
[1764627849587,0.4841,2803.8,2803.4,4.13509709]
[1764627850280,0.4591,2803.5,2803.4,4.13509709]
[1764627850476,0.4591,2803.5,2803.4,0.568]
[1764627850687,0.4591,2803.5,2803.4,4.13509709]
[1764627852881,0.4591,2803.5,2803.3,0.568]
[1764627853055,0.4591,2803.5,2803.2,3.56735159]
[1764627853380,0.4591,2803.5,2803.3,0.568]
[1764627854619,0.7141,2803.4,2802.2,7.1372493]
[1764627854786,0.7141,2803.4,2802.5,0.001]
[1764627854787,5.31107302,2803.2,2802.5,0.001]
[1764627855186,5.31107302,2803.2,2802.5,0.4827]
[1764627855394,1.0846173,2803.3,2802.5,0.4827]
[1764627856407,0.4821,2803.2,2802.5,0.4827]
[1764627857003,0.4821,2803.2,2802.7,0.72559411]
[1764627857209,5.79317302,2803.2,2802.7,1.29359411]
[1764627857609,0.4821,2803.1,2802.7,1.29359411]
[1764627859080,0.4821,2803.1,2802.8,3.56786071]
[1764627860009,1.30069411,2802.9,2802.5,0.001]
[1764627860183,0.65760821,2802.6,2802.5,0.001]
[1764627860378,6.13015497,2802.6,2802.5,0.001]
[1764627860589,6.61225497,2802.6,2802.5,0.001]
[1764627860908,7.33028047,2802.6,2802.5,0.001]
[1764627861679,10.89839579,2802.6,2802.5,0.001]
[1764627863109,11.6239899,2802.6,2802.5,0.001]
[1764627863486,11.78857144,2802.6,2802.5,0.001]
[1764627865686,8.22045612,2802.6,2802.5,0.001]
[1764627865882,11.78857144,2802.6,2802.5,0.001]
[1764627867110,11.42458169,2802.6,2802.5,0.001]
[1764627867279,11.52428579,2802.6,2802.5,0.001]
[1764627868410,11.78857144,2802.6,2802.5,0.001]
[1764627871521,0.0997041,2802.3,2801.7,4.00496151]
[1764627871820,0.36398975,2802.2,2801.7,4.00496151]
[1764627872419,0.86088975,2802.2,2801.7,4.00496151]
[1764627873087,0.86088975,2802.2,2801.9,0.001]
[1764627876535,0.36398975,2802.2,2802.1,0.4625]
[1764627876909,0.002,2802.6,2802.1,1.1207]
[1764627877108,0.002,2802.6,2802.1,0.1588]
[1764627877339,0.4601,2802.5,2802.1,0.1588]
[1764627878009,5.47254676,2802.4,2801.9,0.001]
[1764627878208,5.93264676,2802.4,2801.9,0.001]
[1764627878435,6.29663651,2802.4,2802.1,0.72559411]
[1764627878643,5.83653651,2802.4,2802.1,0.72559411]
[1764627884074,5.83653651,2802.4,2802.0,3.56887937]
[1764627884248,0.4653,2802.1,2802.0,4.29447348]
[1764627884551,6.93266372,2802.4,2802.0,3.56887937]
[1764627884752,6.93266372,2802.4,2802.0,4.03137937]
[1764627886844,6.93266372,2802.4,2802.0,0.4625]
[1764627887040,6.93266372,2802.4,2802.0,4.03136009]
[1764627888960,0.4601,2802.3,2802.0,0.4625]
[1764627889252,0.4601,2802.3,2802.0,4.03136922]
[1764627890727,0.4653,2802.1,2802.0,3.56886922]
[1764627891445,0.4601,2802.3,2802.0,3.56886922]
[1764627891656,1.00201696,2802.4,2802.0,7.60024859]
[1764627891841,0.002,2802.4,2802.0,4.32899408]
[1764627892040,0.002,2802.4,2802.0,7.70574859]
[1764627893355,5.93464676,2802.4,2802.0,3.56886922]
[1764627893538,0.36398975,2802.2,2802.0,3.56886922]
[1764627893739,0.36398975,2802.2,2801.9,4.13792007]
[1764627893939,0.002,2802.4,2802.1,0.6213]
[1764627894158,0.002,2802.4,2802.3,0.4625]
[1764627895652,0.002,2802.4,2802.3,4.0309973]
[1764627897346,0.002,2802.4,2802.3,4.5303973]
[1764627899381,0.002,2802.4,2802.3,5.92417834]
[1764627899671,0.002,2802.4,2802.3,4.85677834]
[1764627899973,0.002,2802.4,2802.3,4.5989973]
[1764627900130,0.4673,2802.4,2801.9,0.001]
[1764627900335,0.4673,2802.4,2802.0,4.13678326]
[1764627900568,0.4601,2802.3,2801.9,0.001]
[1764627900735,0.3021,2802.0,2801.9,0.001]
[1764627901335,7.89995874,2802.0,2801.6,0.001]
[1764627901569,6.49533651,2801.7,2801.6,0.001]
[1764627901769,6.13134676,2801.7,2801.6,0.001]
[1764627902064,6.99443651,2801.7,2801.6,0.001]
[1764627902266,7.75068016,2801.7,2801.6,0.001]
[1764627902486,7.38669041,2801.7,2801.6,0.001]
[1764627902776,7.48639451,2801.7,2801.6,0.001]
[1764627902973,11.05565602,2801.7,2801.6,0.001]
[1764627903337,11.78125013,2801.7,2801.6,0.001]
[1764627904391,6.30870337,2801.7,2801.6,0.001]
[1764627909099,6.57298902,2801.7,2801.6,0.001]
[1764627912838,13.02298902,2801.7,2801.6,0.001]
[1764627915491,11.86508902,2801.7,2801.6,0.001]
[1764627918623,7.17559411,2801.7,2801.6,0.001]
[1764627919236,10.74485562,2801.7,2801.6,0.001]
[1764627919630,11.10884537,2801.7,2801.6,0.001]
[1764627920244,10.74485562,2801.7,2801.6,0.001]
[1764627921211,6.45,2801.7,2801.6,0.001]
[1764627923156,11.68906648,2801.7,2801.6,0.001]
[1764627923521,11.58936238,2801.7,2801.6,0.001]
[1764627923923,8.02010087,2801.7,2801.6,0.001]
[1764627924150,11.58936238,2801.7,2801.6,0.001]
[1764627925254,8.02010087,2801.7,2801.6,0.001]
[1764627925494,11.58936238,2801.7,2801.6,0.001]
[1764627925782,8.02010087,2801.7,2801.6,0.001]
[1764627925945,11.58936238,2801.7,2801.6,0.001]
[1764627926274,8.02010087,2801.7,2801.6,0.001]
[1764627926568,13.32976613,2801.7,2801.6,0.001]
[1764627927074,16.89902764,2801.7,2801.6,0.001]
[1764627927847,13.32976613,2801.7,2801.6,0.001]
[1764627928050,16.89902764,2801.7,2801.6,0.001]
[1764627929946,22.2086929,2801.7,2801.6,0.001]
[1764627930145,0.0997041,2801.6,2801.5,0.001]
[1764627930368,3.48562347,2801.6,2801.5,0.001]
[1764627931372,7.05501239,2801.6,2801.5,0.001]
[1764627935897,10.62440131,2801.6,2801.3,0.001]
[1764627936099,5.67365501,2801.4,2801.3,0.001]
[1764627936404,8.01908434,2801.4,2801.3,0.001]
[1764627936715,7.8545028,2801.4,2801.3,0.001]
[1764627937082,7.65509459,2801.4,2801.3,0.001]
[1764627938007,11.22473833,2801.4,2801.3,0.001]
[1764627938588,11.42414654,2801.4,2801.3,0.001]
[1764627938785,11.32444243,2801.4,2801.3,0.001]
[1764627940811,11.58872808,2801.4,2801.3,0.001]
[1764627943796,7.75479869,2801.4,2801.3,0.001]
[1764627944114,5.30966526,2801.8,2801.3,0.001]
[1764627944425,3.57103096,2801.9,2801.3,0.001]
[1764627944426,5.30966526,2801.6,2801.3,0.001]
[1764627945410,0.002,2801.9,2801.3,0.001]
[1764627945929,0.002,2801.6,2801.3,0.001]
[1764627951646,0.002,2801.6,2801.3,0.82857972]
[1764627952457,0.002,2801.6,2801.3,1.55417383]
[1764627952845,0.527,2802.5,2801.3,7.93670261]
[1764627953028,5.31166526,2802.6,2801.3,6.86383909]
[1764627953356,5.31166526,2802.6,2801.5,10.70854899]
[1764627953560,8.87983271,2802.6,2801.5,10.70854899]
[1764627953854,8.87983271,2802.6,2801.6,0.567]
[1764627955364,5.30966526,2802.4,2801.7,3.56926151]
[1764627955857,5.30966526,2802.4,2801.7,7.13852302]
[1764627956052,5.30966526,2802.4,2801.8,0.84311171]
[1764627957834,5.30966526,2802.4,2801.9,3.56900674]
[1764627959071,5.30966526,2802.2,2801.3,0.82857972]
[1764627959358,5.30966526,2802.2,2801.7,0.567]
[1764627960065,5.30966526,2802.2,2801.7,4.13626067]
[1764627960363,5.30966526,2802.2,2801.7,7.70552218]
[1764627960739,5.30966526,2801.8,2801.3,0.001]
[1764627961053,3.5684973,2802.3,2801.4,3.56964374]
[1764627961054,5.30966526,2801.6,2801.4,3.56964374]
[1764627961566,7.13705085,2802.3,2801.4,3.56964374]
[1764627961567,5.30966526,2801.8,2801.4,3.56964374]
[1764627962551,5.30966526,2801.8,2801.3,0.001]
[1764627962755,5.30966526,2801.8,2801.3,0.72659411]
[1764627964857,5.30966526,2801.8,2801.4,3.56964374]
[1764627965766,5.30966526,2801.8,2801.4,7.13928748]
[1764627966065,5.87666526,2802.4,2801.3,3.57072993]
[1764627966066,5.30966526,2801.6,2801.3,3.57072993]
[1764627966275,3.56902124,2801.9,2801.4,0.72559411]
[1764627966569,5.30966526,2801.5,2801.4,0.72559411]
[1764627967943,8.87923249,2801.5,2801.3,0.001]
[1764627968142,0.53096653,2801.4,2801.3,0.001]
[1764627970184,4.10061027,2801.4,2801.3,0.001]
[1764627970507,4.20031437,2801.4,2801.3,0.001]
[1764627972384,4.92590848,2801.4,2801.3,0.001]
[1764627975557,5.02561259,2801.4,2801.3,0.001]
[1764627975780,4.30001848,2801.4,2801.3,0.001]
[1764627976980,4.10061027,2801.4,2801.3,0.001]
[1764627977756,5.30966526,2801.7,2801.3,0.001]
[1764627977957,5.30966526,2801.5,2801.3,0.001]
[1764627979388,5.30966526,2801.7,2801.3,0.001]
[1764627979561,5.30966526,2801.5,2801.3,0.001]
[1764627980357,5.47567868,2801.7,2801.3,0.001]
[1764627981287,6.06354521,2802.3,2801.3,0.001]
[1764627981482,5.47567868,2802.0,2801.3,0.001]
[1764627982488,5.47567868,2801.7,2801.3,0.001]
[1764627985187,3.568752,2802.1,2801.3,0.001]
[1764627985519,9.04443068,2802.1,2801.3,0.001]
[1764627986361,10.36243716,2802.1,2801.3,0.001]
[1764627987861,13.93120499,2802.1,2801.3,0.001]
[1764627988689,10.36243716,2802.1,2801.3,0.001]
[1764627989392,13.93120499,2802.1,2801.3,0.001]
[1764627989594,10.36243716,2802.1,2801.3,0.001]
[1764627990493,13.93120499,2802.1,2801.3,0.001]
[1764627990996,1.12361601,2802.0,2801.3,0.001]
[1764627991490,5.47567868,2801.8,2801.3,0.001]
[1764627992594,9.04481369,2801.8,2801.3,0.001]
[1764627993297,5.47567868,2801.5,2801.3,0.001]
[1764627993864,0.567,2801.4,2801.3,0.001]
[1764627994063,1.17126787,2801.4,2801.3,0.001]
[1764627994287,4.74091161,2801.4,2801.3,0.001]
[1764627995392,4.69260133,2802.0,2801.3,0.001]
[1764627995393,3.56906921,2801.9,2801.3,0.001]
[1764627995576,5.47567868,2801.7,2801.3,0.001]
[1764627995978,3.56938892,2801.6,2801.3,0.001]
[1764627996178,9.04494596,2801.7,2801.3,0.001]
[1764627996382,1.10390281,2801.6,2801.3,0.001]
[1764627996881,5.47567868,2801.4,2801.3,0.001]
[1764627997480,5.57538278,2801.4,2801.3,0.001]
[1764627997884,6.04267868,2801.4,2801.3,0.001]
[1764627998084,9.61232242,2801.4,2801.3,0.001]
[1764627998408,11.12066082,2801.4,2801.3,0.001]
[1764627998785,0.36398975,2801.1,2801.0,0.001]
[1764627999002,5.83966843,2801.1,2801.0,0.001]
[1764628000002,6.56526254,2801.1,2801.0,0.001]
[1764628000192,10.1352886,2801.1,2801.0,0.001]
[1764628000392,11.54635833,2801.1,2801.0,0.001]
[1764628001382,10.45677447,2801.1,2801.0,0.001]
[1764628001779,10.82076422,2801.1,2801.0,0.001]
[1764628003009,10.55647857,2801.1,2801.0,0.001]
[1764628003676,18.10203469,2801.1,2800.7,0.001]
[1764628003876,5.83966843,2800.4,2800.3,0.001]
[1764628004089,6.40666843,2800.4,2800.3,0.001]
[1764628004502,9.97758687,2800.4,2800.3,0.001]
[1764628012833,9.61359712,2800.4,2800.3,0.001]
[1764628013328,9.97758687,2800.4,2800.3,0.001]
[1764628013520,11.06813988,2800.4,2800.3,0.001]
[1764628020531,5.47567868,2800.8,2800.3,0.001]
[1764628020742,5.47567868,2801.6,2800.3,0.001]
[1764628021032,0.567,2801.4,2800.3,0.001]
[1764628021233,5.47567868,2801.9,2800.5,0.405504]
[1764628021536,0.72559411,2801.8,2800.5,0.405504]
[1764628021735,0.567,2801.9,2800.5,0.405504]
[1764628021902,1.29259411,2801.9,2800.5,0.405504]
[1764628022406,0.567,2801.9,2800.7,0.405504]
[1764628022599,0.567,2801.9,2800.8,0.567]
[1764628024617,0.567,2801.9,2800.9,10.71084294]
[1764628024815,0.567,2801.9,2800.9,7.14056196]
[1764628025028,0.567,2801.9,2801.0,0.7707562]
[1764628025906,4.13600681,2801.9,2801.0,0.7707562]
[1764628026105,0.567,2801.9,2801.0,0.7707562]
[1764628026632,0.567,2801.9,2801.1,7.14005212]
[1764628027935,4.13601885,2801.9,2801.1,7.14005212]
[1764628028139,4.13601885,2801.9,2801.2,0.79108083]
[1764628028307,0.567,2801.9,2801.2,0.79108083]
[1764628028931,0.567,2801.9,2801.3,3.56977117]
[1764628029722,4.13603504,2801.9,2801.3,3.56977117]
[1764628029937,4.13803504,2801.9,2801.3,3.56977117]
[1764628030128,0.569,2801.9,2801.3,4.36284621]
[1764628030328,4.1380402,2801.9,2801.3,4.36284621]
[1764628030507,0.569,2801.9,2801.3,4.36284621]
[1764628030713,0.569,2801.9,2801.3,7.93261738]
[1764628031015,0.002,2801.9,2801.0,3.57012849]
[1764628031525,0.002,2801.9,2800.9,7.14056196]
[1764628031925,0.002,2801.9,2800.9,10.71084294]
[1764628034342,0.002,2801.9,2801.0,1.13109811]
[1764628034545,0.002,2801.9,2801.2,0.405504]
[1764628034839,0.002,2801.9,2801.4,0.405504]
[1764628035442,0.002,2801.9,2801.6,1.13109811]
[1764628035748,0.002,2801.9,2801.7,0.567]
[1764628036319,0.002,2801.9,2801.8,0.14299784]
[1764628036522,0.002,2801.9,2801.8,0.32710744]
[1764628037319,0.002,2801.9,2801.8,0.1841096]
[1764628037545,0.002,2801.9,2801.8,4.88434183]
[1764628037744,1e-08,2802.2,2801.9,1.13109811]
[1764628037942,1e-08,2802.2,2802.1,0.405504]
[1764628038146,1e-08,2802.2,2802.1,0.972504]
[1764628039548,1e-08,2802.2,2802.1,5.26685011]
[1764628042433,1e-08,2802.2,2802.1,12.50176453]
[1764628042642,1e-08,2802.2,2802.1,13.55822481]
[1764628044359,1e-08,2802.2,2802.1,11.62366779]
[1764628044857,1e-08,2802.2,2802.1,11.7666273]
[1764628045264,0.002,2804.1,2802.3,0.405504]
[1764628045465,0.002,2804.1,2802.2,0.72559411]
[1764628045466,0.002,2804.1,2803.7,6.43145551]
[1764628045762,0.002,2804.1,2803.7,6.99745551]
[1764628046356,0.002,2804.1,2803.7,1.69709811]
[1764628046861,0.002,2804.1,2803.7,5.26381352]
[1764628047664,0.49,2803.8,2803.7,5.26381352]
[1764628047872,0.49,2803.8,2803.7,6.14687876]
[1764628050563,0.002,2803.8,2803.7,6.14687876]
[1764628051059,0.1859,2804.2,2803.8,1.13109811]
[1764628051262,0.6739,2804.2,2803.8,1.13109811]
[1764628051468,0.6739,2804.2,2804.0,1.13109811]
[1764628051666,0.6739,2804.2,2804.1,1.63097694]
[1764628052260,0.1859,2804.2,2804.1,1.06497694]
[1764628052453,0.6739,2804.2,2804.1,1.63097694]
[1764628053460,0.6739,2804.2,2804.1,5.92277767]
[1764628053634,0.6739,2804.2,2804.1,4.69730473]
[1764628053839,0.6739,2804.2,2804.1,5.26330473]
[1764628057441,0.002,2804.4,2804.1,5.26330473]
[1764628057442,0.002,2804.4,2804.2,1.13109811]
[1764628057664,0.002,2804.4,2804.3,6.25646134]
[1764628057863,0.4976,2805.5,2805.0,1.13109811]
[1764628058175,0.4976,2805.5,2805.2,0.405504]
[1764628059775,0.4976,2805.5,2805.4,0.72559411]
[1764628059973,0.4976,2805.5,2805.4,1.37981638]
[1764628060780,0.4976,2805.5,2805.4,1.29159411]
[1764628061748,0.4976,2805.5,2805.4,4.85614818]
[1764628061950,0.4976,2805.5,2805.4,5.26165218]
[1764628062179,0.002,2805.6,2805.5,0.405504]
[1764628062762,0.4747,2805.6,2805.5,0.405504]
[1764628063150,0.4747,2805.6,2805.4,7.85470225]
[1764628063470,0.4747,2805.6,2804.8,7.1306332]
[1764628063654,0.4747,2805.6,2804.9,0.566]
[1764628063848,0.4747,2805.6,2805.0,7.13012476]
[1764628064455,0.002,2805.5,2805.0,7.13012476]
[1764628064984,0.4727,2805.4,2805.0,7.13012476]
[1764628066763,0.4727,2805.4,2805.0,3.56506238]
[1764628069981,0.4727,2805.4,2805.0,7.13012476]
[1764628071763,0.4727,2805.4,2805.0,3.56506238]
[1764628071986,0.4727,2805.4,2805.0,7.13012476]
[1764628072486,0.4727,2805.4,2805.0,3.56506238]
[1764628072791,0.4727,2805.4,2805.0,4.13106238]
[1764628073290,0.87680337,2805.4,2805.0,4.13106238]
[1764628073488,0.4727,2805.4,2805.0,4.13106238]
[1764628073687,0.4727,2805.3,2805.0,4.13106238]
[1764628074367,0.4727,2805.3,2805.0,3.56506238]
[1764628074763,0.002,2805.5,2805.0,7.13012476]
[1764628074964,0.4747,2805.5,2805.0,7.13012476]
[1764628075876,0.4747,2805.5,2805.1,0.566]
[1764628076186,0.4747,2805.5,2805.2,0.566]
[1764628077486,1.05177706,2805.5,2805.2,0.566]
[1764628077787,0.4727,2805.4,2805.3,3.56468113]
[1764628078187,0.4727,2805.4,2805.2,4.13076065]
[1764628078866,0.4727,2805.4,2805.2,7.69556886]
[1764628079295,0.4671,2805.3,2805.2,4.13076065]
[1764628079987,0.4671,2805.3,2805.2,3.56476065]
[1764628080192,0.9398,2805.3,2805.2,3.56476065]
[1764628081073,0.9398,2805.3,2805.1,3.56492506]
[1764628081368,5.99167058,2805.2,2804.6,0.72559411]
[1764628081569,0.4647,2804.8,2804.6,1.29159411]
[1764628081774,0.2273,2804.7,2804.6,1.29159411]
[1764628081994,0.2273,2804.7,2804.6,4.85716495]
[1764628082298,0.7,2804.7,2804.6,4.85716495]
[1764628082669,5.29407058,2805.2,2804.6,8.90813579]
[1764628082867,0.4727,2805.1,2804.6,8.90813579]
[1764628084403,0.4727,2805.1,2804.6,8.42273579]
[1764628085099,0.4671,2804.7,2804.6,4.85716495]
[1764628085302,0.002,2805.4,2804.6,4.85716495]
[1764628085303,0.002,2805.4,2805.0,0.4854]
[1764628085501,0.002,2805.4,2804.6,15.55387747]
[1764628085502,0.4671,2804.7,2804.6,4.29116495]
[1764628085671,0.4671,2804.7,2804.6,4.85716495]
[1764628086073,0.9398,2804.7,2804.4,0.001]
[1764628086308,0.4647,2804.5,2804.4,0.001]
[1764628086675,0.9374,2804.5,2804.4,0.001]
[1764628092011,0.9419,2804.5,2804.4,0.001]
[1764628093898,0.4576,2804.5,2804.4,0.001]
[1764628095016,0.1801,2804.9,2804.4,0.9216]
[1764628095209,0.1801,2804.9,2804.6,0.463]
[1764628095415,0.1801,2804.9,2804.4,0.4586]
[1764628095416,0.4863,2805.4,2804.8,0.463]
[1764628095713,0.4843,2805.3,2804.7,0.566]
[1764628097084,0.4843,2805.3,2804.8,7.1306332]
[1764628099780,0.4576,2804.9,2804.8,3.5653166]
[1764628099985,0.4576,2804.9,2804.8,4.1313166]
[1764628101289,0.9419,2804.9,2804.8,3.5653166]
[1764628101491,0.4576,2804.9,2804.8,4.1313166]
[1764628102023,1.122,2804.9,2804.8,4.1313166]
[1764628102984,1.122,2804.9,2804.4,0.001]
[1764628103210,0.4576,2804.5,2804.4,4.85841924]
[1764628103613,0.9419,2804.5,2804.4,0.001]
[1764628105122,4.95835075,2804.5,2804.4,0.001]
[1764628105305,4.50759798,2804.5,2804.4,0.001]
[1764628105666,6.16318184,2804.5,2804.4,0.001]
[1764628106918,5.23319209,2804.5,2804.4,0.001]
[1764628107095,1.66749411,2804.5,2804.4,0.001]
[1764628107296,2.24740096,2804.5,2804.4,0.001]
[1764628107501,2.24740096,2804.5,2804.0,0.001]
[1764628107502,0.6377,2803.6,2802.0,0.001]
[1764628107691,0.1179,2802.9,2802.1,0.1588]
[1764628107891,1.0513,2803.5,2802.2,0.567]
[1764628108094,0.4843,2803.4,2802.8,0.463]
[1764628108291,0.1801,2803.6,2802.8,0.463]
[1764628108524,0.1801,2803.6,2802.9,0.4576]
[1764628108890,0.1179,2804.0,2803.5,0.463]
[1764628109091,0.1179,2804.0,2803.5,0.6218]
[1764628109428,0.6022,2804.0,2803.5,0.6218]
[1764628109826,0.6022,2804.0,2803.6,3.56684263]
[1764628110028,0.1179,2804.0,2803.6,7.13368526]
[1764628110227,0.1801,2804.2,2803.6,7.13368526]
[1764628110420,0.1801,2804.4,2803.6,8.32053379]
[1764628111330,0.6644,2804.4,2803.6,8.32053379]
[1764628114540,0.4645,2804.3,2803.6,8.32053379]
[1764628114707,0.4645,2804.3,2803.7,0.567]
[1764628115125,0.4645,2804.3,2803.7,1.82831835]
[1764628116221,0.1801,2804.4,2803.7,2.28031835]
[1764628116421,0.1801,2804.4,2803.8,7.1331764]
[1764628116802,4.03002236,2804.7,2803.8,7.5851764]
[1764628117003,0.4645,2804.6,2803.8,7.5851764]
[1764628117634,0.4645,2804.6,2803.8,7.1331764]
[1764628118703,4.03011142,2804.6,2803.8,3.5665882]
[1764628121026,0.4645,2804.4,2803.8,0.4995]
[1764628121219,4.04797226,2804.6,2803.8,0.4995]
[1764628121531,0.1821,2804.9,2804.5,0.4968]
[1764628121733,0.6645,2804.9,2804.1,0.567]
[1764628121912,0.4824,2804.8,2804.1,0.567]
[1764628122231,0.4824,2804.8,2804.2,0.1588]
[1764628123162,0.1821,2804.9,2804.2,0.1588]
[1764628123430,0.002,2804.9,2804.7,0.4968]
[1764628124205,0.002,2804.9,2804.8,3.5653166]
[1764628125015,0.4952,2804.9,2804.8,3.5653166]
[1764628125447,0.002,2804.9,2804.8,4.0621166]
[1764628125638,0.002,2804.9,2804.8,5.5093206]
[1764628125937,0.002,2804.9,2804.8,6.23491471]
[1764628132116,0.002,2804.9,2804.8,5.19321471]
[1764628132317,1.1728,2804.9,2804.8,3.5653166]
[1764628132513,1.1728,2804.9,2804.6,3.56557084]
[1764628132717,0.6801,2804.8,2804.6,7.13114168]
[1764628133033,0.4902,2804.7,2804.6,3.56557084]
[1764628133233,0.4902,2804.7,2804.5,3.56569127]
[1764628133418,0.4902,2804.7,2804.5,7.13138925]
[1764628133824,0.2007,2804.6,2804.5,3.56569127]
[1764628135927,0.2007,2804.6,2804.5,4.13269127]
[1764628135928,0.6831,2804.6,2804.5,4.13269127]
[1764628136129,0.6831,2804.6,2804.5,3.56569127]
[1764628138566,0.6831,2804.6,2804.4,4.1327973]
[1764628138733,0.9697,2804.5,2804.4,0.567]
[1764628139059,0.4873,2804.5,2804.4,4.13282513]
[1764628145560,0.1972,2804.9,2804.4,4.62962513]
[1764628145742,0.6796,2804.9,2804.4,11.76127539]
[1764628146136,0.4824,2804.8,2804.4,11.76127539]
[1764628146336,0.4824,2804.8,2804.4,8.19545026]
[1764628146743,0.4932,2804.5,2804.4,4.13282513]
[1764628148736,0.4824,2804.8,2804.4,11.26447539]
[1764628148932,0.1972,2804.9,2804.4,11.26447539]
[1764628149271,0.002,2804.9,2804.4,11.73917539]
[1764628149562,0.002,2804.9,2804.8,0.4968]
[1764628149735,0.002,2804.9,2804.8,4.6291166]
[1764628149939,0.002,2804.9,2804.8,5.5093206]
[1764628150134,0.002,2804.9,2804.8,5.0346206]
[1764628150439,0.002,2804.9,2804.8,5.76021471]
[1764628150650,0.002,2804.9,2804.8,7.21494968]
[1764628153260,0.002,2804.9,2804.8,6.74024968]
[1764628155377,0.002,2804.9,2804.8,7.19744968]
[1764628155574,0.4957,2804.9,2804.8,4.29091071]
[1764628155779,0.4957,2804.9,2804.8,4.85691071]
[1764628155780,0.9635,2804.9,2804.8,4.85691071]
[1764628155968,0.4957,2804.9,2804.8,4.85691071]
[1764628156770,0.002,2804.9,2804.8,4.85691071]
[1764628157072,0.002,2804.9,2804.8,5.69914528]
[1764628157773,0.4957,2804.9,2804.8,5.11862528]
[1764628159982,0.4957,2804.9,2804.8,4.27639071]
[1764628161561,0.4957,2804.9,2804.8,3.71039071]
[1764628161766,0.4957,2804.9,2804.8,4.27639071]
[1764628161767,0.9635,2804.9,2804.8,4.27639071]
[1764628163387,0.4957,2804.9,2804.8,4.27639071]
[1764628163684,0.9635,2804.9,2804.8,4.27639071]
[1764628165989,1.1518,2804.9,2804.8,4.27639071]
[1764628168689,0.4957,2804.9,2804.8,4.27639071]
[1764628168880,0.002,2804.9,2804.8,4.75499071]
[1764628169594,0.002,2804.9,2804.8,4.75599071]
[1764628169760,0.002,2804.9,2804.8,5.63385328]
[1764628169961,0.002,2804.9,2804.8,6.13225328]
[1764628171361,0.002,2804.9,2804.8,5.15525328]
[1764628171362,0.4713,2804.9,2804.8,5.15525328]
[1764628171566,0.4713,2804.9,2804.8,4.27739071]
[1764628171773,0.002,2804.9,2804.8,4.27739071]
[1764628171982,0.4713,2804.9,2804.8,4.27739071]
[1764628173795,0.4713,2804.9,2804.8,3.5517966]
[1764628173996,0.9707,2804.9,2804.8,3.5517966]
[1764628174866,0.9707,2804.9,2804.8,0.567]
[1764628176083,0.9707,2804.9,2804.8,0.3886197]
[1764628176279,0.9707,2804.9,2804.8,0.001]
[1764628178605,0.4713,2804.9,2804.8,0.001]
[1764628178970,0.9707,2804.9,2804.8,0.001]
[1764628187181,0.002,2804.9,2804.8,0.001]
[1764628187392,0.4738,2804.9,2804.8,0.001]
[1764628187807,0.9648,2804.9,2804.5,11.06397828]
[1764628188504,0.9648,2804.9,2804.8,0.001]
[1764628196610,0.4738,2804.9,2804.8,0.001]
[1764628196913,0.002,2804.9,2804.8,0.001]
[1764628197090,0.4738,2804.9,2804.8,0.001]
[1764628197291,0.9648,2804.9,2804.8,0.001]
[1764628198712,1.610433,2804.9,2804.8,0.001]
[1764628199012,10.83354219,2804.9,2804.8,0.001]
[1764628199384,11.5591363,2804.9,2804.8,0.001]
[1764628199813,6.26520634,2804.9,2804.8,0.001]
[1764628201084,1.119433,2804.9,2804.8,0.001]
[1764628201293,0.9648,2804.9,2804.8,0.001]
[1764628201519,0.002,2804.9,2804.8,0.4835]
[1764628202493,0.002,2804.9,2804.8,4.0488166]
[1764628204847,0.002,2804.9,2804.8,5.64791471]
[1764628205119,0.002,2804.9,2804.8,7.15524289]
[1764628210597,0.002,2804.9,2804.8,7.72124289]
[1764628211136,0.002,2805.4,2805.3,0.405504]
[1764628211303,0.002,2805.4,2805.3,7.46102807]
[1764628211503,0.002,2805.4,2805.3,7.91162807]
[1764628211706,0.002,2805.4,2805.3,8.71867088]
[1764628212134,0.002,2805.4,2805.3,14.01260084]
[1764628212305,1e-08,2805.7,2805.6,1.13109811]
[1764628212502,1e-08,2805.7,2805.6,6.89502807]
[1764628212702,1e-08,2805.7,2805.6,8.60958387]
[1764628213011,1e-08,2805.7,2805.6,12.31667443]
[1764628215002,1e-08,2805.7,2805.6,7.02274447]
[1764628215238,1e-08,2805.7,2805.6,17.61060439]
[1764628218333,1e-08,2805.7,2805.6,12.31667443]
[1764628219246,1e-08,2805.7,2805.6,5.84655036]
[1764628219408,1e-08,2805.7,2805.6,12.15708032]
[1764628219605,1e-08,2805.7,2805.6,12.88267443]
[1764628219810,1e-08,2805.7,2805.6,18.17660439]
[1764628220009,1e-08,2805.7,2805.6,12.88267443]
[1764628221132,1e-08,2805.7,2805.6,5.84655036]
[1764628221318,1e-08,2805.7,2805.6,6.41255036]
[1764628221503,0.48820001,2805.7,2805.6,4.97104636]
[1764628221709,0.48820001,2805.7,2805.6,4.27309056]
[1764628221710,0.96110001,2805.7,2805.6,4.27309056]
[1764628222209,0.96110001,2805.7,2805.6,4.13029997]
[1764628223525,0.96110001,2805.7,2805.4,3.56452667]
[1764628223526,6.25502997,2805.7,2805.4,3.56452667]
[1764628223724,0.4882,2805.3,2805.2,3.56477411]
[1764628223923,0.4882,2805.3,2804.9,3.56518948]
[1764628224129,0.4729,2805.2,2804.9,3.56518948]
[1764628224439,0.4729,2805.2,2804.8,0.001]
[1764628224440,0.6711,2805.0,2804.8,0.001]